fUST/lending_fUST_20240824
["ID","MTS","AMOUNT","RATE_DAILY","PERIOD"]
[335807598,1724499041308,-500.0,0.00013698,2]
[335807599,1724499041318,-298.92731295,0.00013698,2]
[335807600,1724499041329,-500.0,0.00013698,2]
[335807601,1724499041339,-500.0,0.00013698,2]
[335807602,1724499041351,-500.0,0.00013698,2]
[335807603,1724499041362,-500.0,0.00013698,2]
[335807604,1724499041371,-500.0,0.00013698,2]
[335807605,1724499041381,-500.0,0.00013698,2]
[335807606,1724499041390,-551.2700548,0.00013698,2]
[335807607,1724499041400,-500.0,0.00013698,2]
[335807608,1724499041410,-500.0,0.00013698,2]
[335807609,1724499041421,-500.0,0.00013698,2]
[335807610,1724499041434,-500.0,0.00013698,2]
[335807611,1724499041445,-500.0,0.00013698,2]
[335807612,1724499041456,-289.86311293,0.00013698,2]
[335807613,1724499041466,-500.0,0.00013698,2]
[335807614,1724499041475,-554.37074872,0.00013698,2]
[335807615,1724499041486,-500.0,0.00013698,2]
[335807616,1724499041495,-500.0,0.00013698,2]
[335807617,1724499041505,-500.0,0.00013698,2]
[335807618,1724499041514,-500.0,0.00013698,2]
[335807619,1724499041525,-500.0,0.00013698,2]
[335807620,1724499041536,-500.0,0.00013698,2]
[335807621,1724499041547,-305.87400358,0.00013698,2]
[335807622,1724499041557,-500.0,0.00013698,2]
[335807623,1724499041567,-500.0,0.00013698,2]
[335807624,1724499041578,-500.0,0.00013698,2]
[335807625,1724499041589,-500.0,0.00013698,2]
[335807626,1724499041600,-500.0,0.00013698,2]
[335807627,1724499041611,-500.0,0.00013698,2]
[335807628,1724499041621,-400.0,0.00013698,2]
[335807629,1724499041632,-500.0,0.00013698,2]
[335807630,1724499041643,-500.0,0.00013698,2]
[335807631,1724499041653,-500.0,0.00013698,2]
[335807632,1724499041664,-823.49,0.00013698,2]
[335807633,1724499041674,-500.0,0.00013698,2]
[335807634,1724499041683,-500.0,0.00013698,2]
[335807635,1724499041693,-501.29162134,0.00013698,2]
[335807636,1724499041703,-500.0,0.00013698,2]
[335807637,1724499041713,-501.1535577,0.00013698,2]
[335807638,1724499041721,-500.0,0.00013698,2]
[335807639,1724499041731,-501.9178926,0.00013698,2]
[335807640,1724499041741,-509.38034632,0.00013698,2]
[335807641,1724499041751,-500.0,0.00013698,2]
[335807642,1724499041760,-500.0,0.00013698,2]
[335807643,1724499041771,-500.0,0.00013698,2]
[335807644,1724499041781,-585.32,0.00013698,2]
[335807645,1724499041791,-500.0,0.00013698,2]
[335807646,1724499041801,-500.0,0.00013698,2]
[335807647,1724499041810,-500.0,0.00013698,2]
[335807648,1724499041820,-500.0,0.00013698,2]
[335807649,1724499041829,-500.0,0.00013698,2]
[335807650,1724499041839,-500.0,0.00013698,2]
[335807651,1724499041848,-500.0,0.00013698,2]
[335807652,1724499041858,-500.0,0.00013698,2]
[335807653,1724499041867,-500.0,0.00013698,2]
[335807654,1724499041877,-500.0,0.00013698,2]
[335807655,1724499041887,-500.0,0.00013698,2]
[335807656,1724499041897,-663.9,0.00013698,2]
[335807657,1724499041907,-500.0,0.00013698,2]
[335807658,1724499041917,-500.0,0.00013698,2]
[335807659,1724499041928,-500.0,0.00013698,2]
[335807660,1724499041939,-500.0,0.00013698,2]
[335807661,1724499041951,-764.51,0.00013698,2]
[335807662,1724499041961,-500.0,0.00013698,2]
[335807663,1724499041972,-500.0,0.00013698,2]
[335807664,1724499041982,-500.0,0.00013698,2]
[335807665,1724499041992,-500.0,0.00013698,2]
[335807666,1724499042002,-500.0,0.00013698,2]
[335807667,1724499042012,-500.0,0.00013698,2]
[335807669,1724499042021,-500.18172759,0.00013698,2]
[335807670,1724499042030,-500.0,0.00013698,2]
[335807671,1724499042040,-500.0,0.00013698,2]
[335807672,1724499042049,-571.96554117,0.00013698,2]
[335807673,1724499042059,-500.0,0.00013698,2]
[335807674,1724499042068,-500.0,0.00013698,2]
[335807675,1724499042078,-500.0,0.00013698,2]
[335807676,1724499042090,-500.0,0.00013698,2]
[335807677,1724499042100,-500.0,0.00013698,2]
[335807678,1724499042111,-746.23,0.00013698,2]
[335807679,1724499042121,-500.0,0.00013698,2]
[335807680,1724499042132,-500.0,0.00013698,2]
[335807681,1724499042143,-500.0,0.00013698,2]
[335807682,1724499042155,-521.64,0.00013698,2]
[335807683,1724499042166,-500.0,0.00013698,2]
[335807684,1724499042177,-500.0,0.00013698,2]
[335807685,1724499042187,-531.97,0.00013698,2]
[335807686,1724499042203,-500.0,0.00013698,2]
[335807687,1724499042213,-500.0,0.00013698,2]
[335807688,1724499042225,-500.0,0.00013698,2]
[335807689,1724499042238,-500.0,0.00013698,2]
[335807690,1724499042248,-500.0,0.00013698,2]
[335807691,1724499042259,-503.11997067,0.00013698,2]
[335807692,1724499042268,-561.59264497,0.00013698,2]
[335807693,1724499042280,-561.21,0.00013698,2]
[335807694,1724499042291,-501.17,0.00013698,2]
[335807695,1724499042300,-500.0,0.00013698,2]
[335807696,1724499042310,-500.0,0.00013698,2]
[335807697,1724499042318,-500.0,0.00013698,2]
[335807698,1724499042328,-553.53,0.00013698,2]
[335807699,1724499042337,-500.0,0.00013698,2]
[335807700,1724499042347,-500.0,0.00013698,2]
[335807701,1724499042356,-642.16,0.00013698,2]
[335807702,1724499042366,-500.0,0.00013698,2]
[335807703,1724499042375,-500.0,0.00013698,2]
[335807704,1724499042384,-540.78,0.00013698,2]
[335807705,1724499042393,-544.29683689,0.00013698,2]
[335807706,1724499042402,-600.1766045,0.00013698,2]
[335807707,1724499042412,-500.0,0.00013698,2]
[335807708,1724499042421,-500.0,0.00013698,2]
[335807709,1724499042430,-746.96,0.00013698,2]
[335807710,1724499042439,-1037.76,0.00013698,2]
[335807711,1724499042448,-500.0,0.00013698,2]
[335807712,1724499042458,-500.0,0.00013698,2]
[335807713,1724499042467,-500.0,0.00013698,2]
[335807714,1724499042477,-500.0,0.00013698,2]
[335807715,1724499042486,-500.0,0.00013698,2]
[335807716,1724499042496,-782.47,0.00013698,2]
[335807717,1724499042505,-500.0,0.00013698,2]
[335807718,1724499042515,-1148.27,0.00013698,2]
[335807719,1724499042524,-500.0,0.00013698,2]
[335807720,1724499042535,-500.0,0.00013698,2]
[335807721,1724499042545,-650.88,0.00013698,2]
[335807722,1724499042554,-500.0,0.00013698,2]
[335807723,1724499042565,-500.0,0.00013698,2]
[335807724,1724499042574,-500.0,0.00013698,2]
[335807725,1724499042583,-500.0,0.00013698,2]
[335807726,1724499042593,-500.0,0.00013698,2]
[335807727,1724499042603,-500.0,0.00013698,2]
[335807728,1724499042612,-500.0,0.00013698,2]
[335807729,1724499042621,-281.44696078,0.00013698,2]
[335807730,1724499042632,-502.7374095,0.00013698,2]
[335807731,1724499042644,-673.34,0.00013698,2]
[335807732,1724499042654,-500.0,0.00013698,2]
[335807733,1724499042664,-500.0,0.00013698,2]
[335807734,1724499042673,-500.0,0.00013698,2]
[335807735,1724499042683,-500.0,0.00013698,2]
[335807736,1724499042692,-500.0,0.00013698,2]
[335807737,1724499042703,-500.0,0.00013698,2]
[335807738,1724499042712,-500.0,0.00013698,2]
[335807739,1724499042721,-500.0,0.00013698,2]
[335807740,1724499042730,-905.14,0.00013698,2]
[335807741,1724499042739,-500.0,0.00013698,2]
[335807742,1724499042749,-500.0,0.00013698,2]
[335807743,1724499042758,-500.0,0.00013698,2]
[335807744,1724499042768,-592.95,0.00013698,2]
[335807745,1724499042778,-393.31312517,0.00013698,2]
[335807746,1724499042787,-840.34,0.00013698,2]
[335807747,1724499042797,-500.0,0.00013698,2]
[335807748,1724499042808,-599.03,0.00013698,2]
[335807749,1724499042820,-500.0,0.00013698,2]
[335807750,1724499042831,-500.0,0.00013698,2]
[335807751,1724499042843,-500.0,0.00013698,2]
[335807752,1724499042853,-500.0,0.00013698,2]
[335807753,1724499042864,-500.0,0.00013698,2]
[335807754,1724499042876,-500.0,0.00013698,2]
[335807755,1724499042886,-893.2,0.00013698,2]
[335807756,1724499042894,-587.74,0.00013698,2]
[335807757,1724499042904,-500.0,0.00013698,2]
[335807758,1724499042914,-1688.8,0.00013698,2]
[335807759,1724499042923,-784.56,0.00013698,2]
[335807760,1724499042933,-500.0,0.00013698,2]
[335807761,1724499042943,-566.86701025,0.00013698,2]
[335807762,1724499042956,-500.0,0.00013698,2]
[335807763,1724499042966,-514.13,0.00013698,2]
[335807764,1724499042976,-517.12,0.00013698,2]
[335807765,1724499042986,-677.27,0.00013698,2]
[335807766,1724499042996,-500.0,0.00013698,2]
[335807767,1724499043006,-500.0,0.00013698,2]
[335807768,1724499043016,-500.0,0.00013698,2]
[335807769,1724499043028,-793.39,0.00013698,2]
[335807770,1724499043038,-923.2,0.00013698,2]
[335807771,1724499043049,-500.0,0.00013698,2]
[335807772,1724499043058,-1081.51,0.00013698,2]
[335807773,1724499043068,-500.0,0.00013698,2]
[335807774,1724499043078,-1130.24,0.00013698,2]
[335807775,1724499043087,-500.0,0.00013698,2]
[335807776,1724499043096,-855.93,0.00013698,2]
[335807777,1724499043106,-1345.4,0.00013698,2]
[335807778,1724499043116,-500.0,0.00013698,2]
[335807779,1724499043128,-500.0,0.00013698,2]
[335807780,1724499043140,-500.0,0.00013698,2]
[335807782,1724499043149,-500.0,0.00013698,2]
[335807783,1724499043158,-1852.45,0.00013698,2]
[335807784,1724499043170,-500.0,0.00013698,2]
[335807785,1724499043180,-500.0,0.00013698,2]
[335807786,1724499043191,-500.0,0.00013698,2]
[335807787,1724499043204,-500.0,0.00013698,2]
[335807788,1724499043214,-500.0,0.00013698,2]
[335807789,1724499043224,-2222.38,0.00013698,2]
[335807790,1724499043235,-500.0,0.00013698,2]
[335807791,1724499043246,-500.0,0.00013698,2]
[335807792,1724499043257,-500.0,0.00013698,2]
[335807793,1724499043267,-522.69,0.00013698,2]
[335807794,1724499043277,-500.0,0.00013698,2]
[335807795,1724499043287,-508.7,0.00013698,2]
[335807796,1724499043297,-500.0,0.00013698,2]
[335807797,1724499043308,-500.0,0.00013698,2]
[335807798,1724499043317,-500.0,0.00013698,2]
[335807799,1724499043328,-500.0,0.00013698,2]
[335807800,1724499043338,-502.23403869,0.00013698,2]
[335807802,1724499043347,-750.3,0.00013698,2]
[335807804,1724499043357,-505.03,0.00013698,2]
[335807806,1724499043366,-500.0,0.00013698,2]
[335807808,1724499043376,-2409.96,0.00013698,2]
[335807810,1724499043385,-500.0,0.00013698,2]
[335807812,1724499043394,-500.0,0.00013698,2]
[335807813,1724499043404,-500.0,0.00013698,2]
[335807814,1724499043413,-1095.12,0.00013698,2]
[335807815,1724499043422,-500.0,0.00013698,2]
[335807816,1724499043431,-459.53187077,0.00013698,2]
[335807818,1724499043441,-1156.98,0.00013698,2]
[335807819,1724499043452,-500.0,0.00013698,2]
[335807820,1724499043471,-500.0,0.00013698,2]
[335807822,1724499043480,-500.0,0.00013698,2]
[335807823,1724499043490,-500.0,0.00013698,2]
[335807824,1724499043499,-500.0,0.00013698,2]
[335807825,1724499043509,-500.0,0.00013698,2]
[335807826,1724499043518,-500.0,0.00013698,2]
[335807827,1724499043527,-646.11,0.00013698,2]
[335807828,1724499043537,-500.0,0.00013698,2]
[335807829,1724499043547,-586.34,0.00013698,2]
[335807830,1724499043559,-500.0,0.00013698,2]
[335807831,1724499043568,-500.0,0.00013698,2]
[335807832,1724499043578,-500.0,0.00013698,2]
[335807833,1724499043587,-500.0,0.00013698,2]
[335807835,1724499043596,-500.0,0.00013698,2]
[335807837,1724499043606,-855.63,0.00013698,2]
[335807838,1724499043615,-1513.1,0.00013698,2]
[335807840,1724499043625,-581.9,0.00013698,2]
[335807841,1724499043636,-500.0,0.00013698,2]
[335807842,1724499043647,-681.92,0.00013698,2]
[335807844,1724499043657,-500.0,0.00013698,2]
[335807845,1724499043666,-500.0,0.00013698,2]
[335807846,1724499043676,-500.0,0.00013698,2]
[335807847,1724499043685,-500.0,0.00013698,2]
[335807848,1724499043695,-500.0,0.00013698,2]
[335807849,1724499043709,-500.0,0.00013698,2]
[335807850,1724499043718,-2627.61,0.00013698,2]
[335807851,1724499043728,-991.4,0.00013698,2]
[335807852,1724499043738,-500.0,0.00013698,2]
[335807853,1724499043747,-1199.71,0.00013698,2]
[335807854,1724499043756,-500.0,0.00013698,2]
[335807855,1724499043767,-500.0,0.00013698,2]
[335807856,1724499043778,-500.0,0.00013698,2]
[335807857,1724499043790,-504.42553646,0.00013698,2]
[335807858,1724499043800,-582.34985091,0.00013698,2]
[335807859,1724499043809,-652.06,0.00013698,2]
[335807860,1724499043819,-1161.27,0.00013698,2]
[335807861,1724499043829,-500.0,0.00013698,2]
[335807862,1724499043839,-721.15,0.00013698,2]
[335807863,1724499043848,-615.99,0.00013698,2]
[335807864,1724499043858,-1196.44,0.00013698,2]
[335807865,1724499043868,-500.0,0.00013698,2]
[335807866,1724499043877,-728.99,0.00013698,2]
[335807867,1724499043887,-500.0,0.00013698,2]
[335807868,1724499043896,-500.0,0.00013698,2]
[335807869,1724499043906,-1850.2,0.00013698,2]
[335807870,1724499043915,-1531.49,0.00013698,2]
[335807871,1724499043925,-500.0,0.00013698,2]
[335807872,1724499043934,-500.0,0.00013698,2]
[335807873,1724499043944,-232.57120854,0.00013698,2]
[335807875,1724499043963,-1314.26,0.00013698,2]
[335807878,1724499043974,-2003.16,0.00013698,2]
[335807879,1724499043984,-500.0,0.00013698,2]
[335807880,1724499043993,-1109.3,0.00013698,2]
[335807881,1724499044003,-500.0,0.00013698,2]
[335807882,1724499044012,-500.0,0.00013698,2]
[335807883,1724499044021,-649.17,0.00013698,2]
[335807884,1724499044031,-500.0,0.00013698,2]
[335807885,1724499044040,-500.0,0.00013698,2]
[335807886,1724499044049,-695.44,0.00013698,2]
[335807887,1724499044059,-1130.9,0.00013698,2]
[335807888,1724499044069,-940.84,0.00013698,2]
[335807889,1724499044078,-1384.2,0.00013698,2]
[335807890,1724499044088,-500.0,0.00013698,2]
[335807891,1724499044098,-500.0,0.00013698,2]
[335807892,1724499044107,-500.0,0.00013698,2]
[335807893,1724499044117,-500.0,0.00013698,2]
[335807894,1724499044126,-500.0,0.00013698,2]
[335807895,1724499044135,-677.19,0.00013698,2]
[335807896,1724499044144,-921.87,0.00013698,2]
[335807898,1724499044154,-1324.85,0.00013698,2]
[335807899,1724499044315,-1244.5,0.00013698,2]
[335807900,1724499044353,-500.0,0.00013698,2]
[335807901,1724499044362,-500.0,0.00013698,2]
[335807902,1724499044372,-1439.83,0.00013698,2]
[335807903,1724499044381,-500.0,0.00013698,2]
[335807904,1724499044390,-500.0,0.00013698,2]
[335807905,1724499044400,-995.38,0.00013698,2]
[335807906,1724499044409,-1304.18,0.00013698,2]
[335807907,1724499044419,-500.0,0.00013698,2]
[335807908,1724499044428,-500.0,0.00013698,2]
[335807909,1724499044437,-1138.57,0.00013698,2]
[335807910,1724499044446,-1065.55,0.00013698,2]
[335807911,1724499044461,-500.0,0.00013698,2]
[335807912,1724499044470,-807.3,0.00013698,2]
[335807913,1724499044479,-500.0,0.00013698,2]
[335807914,1724499044489,-500.0,0.00013698,2]
[335807915,1724499044498,-500.0,0.00013698,2]
[335807916,1724499044507,-500.0,0.00013698,2]
[335807917,1724499044517,-500.0,0.00013698,2]
[335807918,1724499044526,-500.0,0.00013698,2]
[335807919,1724499044535,-500.0,0.00013698,2]
[335807920,1724499044544,-500.0,0.00013698,2]
[335807921,1724499044553,-500.0,0.00013698,2]
[335807922,1724499044563,-500.0,0.00013698,2]
[335807923,1724499044572,-500.0,0.00013698,2]
[335807924,1724499044582,-500.0,0.00013698,2]
[335807925,1724499044592,-500.0,0.00013698,2]
[335807926,1724499044601,-1223.2,0.00013698,2]
[335807927,1724499044612,-834.65,0.00013698,2]
[335807928,1724499044621,-500.0,0.00013698,2]
[335807929,1724499044632,-527.63769833,0.00013698,2]
[335807930,1724499044641,-1419.14,0.00013698,2]
[335807931,1724499044651,-500.0,0.00013698,2]
[335807932,1724499044660,-500.0,0.00013698,2]
[335807933,1724499044669,-1382.72,0.00013698,2]
[335807934,1724499044678,-787.72,0.00013698,2]
[335807935,1724499044687,-585.86,0.00013698,2]
[335807936,1724499044697,-647.56,0.00013698,2]
[335807937,1724499044706,-500.0,0.00013698,2]
[335807938,1724499044716,-500.0,0.00013698,2]
[335807939,1724499044726,-1196.81,0.00013698,2]
[335807940,1724499044736,-803.74,0.00013698,2]
[335807941,1724499044745,-500.0,0.00013698,2]
[335807942,1724499044754,-500.0,0.00013698,2]
[335807943,1724499044763,-500.0,0.00013698,2]
[335807944,1724499044773,-500.0,0.00013698,2]
[335807945,1724499044783,-500.0,0.00013698,2]
[335807946,1724499044793,-500.0,0.00013698,2]
[335807947,1724499044803,-500.0,0.00013698,2]
[335807948,1724499044813,-1437.62,0.00013698,2]
[335807949,1724499044822,-500.0,0.00013698,2]
[335807950,1724499044831,-500.0,0.00013698,2]
[335807951,1724499044841,-511.99630393,0.00013698,2]
[335807952,1724499044850,-500.0,0.00013698,2]
[335807953,1724499044859,-500.0,0.00013698,2]
[335807954,1724499044869,-563.79847369,0.00013698,2]
[335807955,1724499044878,-526.65,0.00013698,2]
[335807956,1724499044888,-624.46,0.00013698,2]
[335807957,1724499044897,-500.0,0.00013698,2]
[335807958,1724499044906,-1049.26,0.00013698,2]
[335807959,1724499044916,-442.44977797,0.00013698,2]
[335807960,1724499044925,-1167.3,0.00013698,2]
[335807961,1724499044935,-500.0,0.00013698,2]
[335807962,1724499044944,-500.0,0.00013698,2]
[335807963,1724499044957,-500.0,0.00013698,2]
[335807964,1724499044967,-500.0,0.00013698,2]
[335807965,1724499044977,-500.0,0.00013698,2]
[335807966,1724499044986,-1159.95,0.00013698,2]
[335807967,1724499044996,-604.65792644,0.00013698,2]
[335807968,1724499045005,-1397.36,0.00013698,2]
[335807969,1724499045015,-500.0,0.00013698,2]
[335807970,1724499045024,-688.21,0.00013698,2]
[335807971,1724499045034,-581.2,0.00013698,2]
[335807972,1724499045043,-500.0,0.00013698,2]
[335807973,1724499045053,-625.14,0.00013698,2]
[335807974,1724499045062,-1018.42,0.00013698,2]
[335807975,1724499045071,-500.0,0.00013698,2]
[335807976,1724499045081,-500.0,0.00013698,2]
[335807977,1724499045091,-500.0,0.00013698,2]
[335807978,1724499045101,-945.15,0.00013698,2]
[335807979,1724499045110,-1587.38,0.00013698,2]
[335807980,1724499045119,-743.45,0.00013698,2]
[335807981,1724499045129,-658.05,0.00013698,2]
[335807982,1724499045138,-500.0,0.00013698,2]
[335807983,1724499045147,-500.0,0.00013698,2]
[335807984,1724499045157,-807.46,0.00013698,2]
[335807985,1724499045167,-500.0,0.00013698,2]
[335807986,1724499045176,-1866.89,0.00013698,2]
[335807987,1724499045185,-788.02,0.00013698,2]
[335807988,1724499045195,-500.0,0.00013698,2]
[335807989,1724499045207,-539.95,0.00013698,2]
[335807990,1724499045216,-667.64,0.00013698,2]
[335807991,1724499045226,-946.79,0.00013698,2]
[335807992,1724499045236,-500.0,0.00013698,2]
[335807993,1724499045245,-1600.09,0.00013698,2]
[335807994,1724499045254,-500.0,0.00013698,2]
[335807995,1724499045262,-536.66,0.00013698,2]
[335807996,1724499045273,-567.16,0.00013698,2]
[335807997,1724499045282,-532.51,0.00013698,2]
[335807998,1724499045292,-500.0,0.00013698,2]
[335807999,1724499045301,-560.62,0.00013698,2]
[335808000,1724499045310,-500.0,0.00013698,2]
[335808001,1724499045320,-500.0,0.00013698,2]
[335808002,1724499045329,-516.67,0.00013698,2]
[335808003,1724499045338,-1301.831948,0.00013698,2]
[335808004,1724499045348,-500.0,0.00013698,2]
[335808005,1724499045357,-735.26,0.00013698,2]
[335808006,1724499045367,-500.0,0.00013698,2]
[335808007,1724499045376,-500.0,0.00013698,2]
[335808008,1724499045385,-1301.831948,0.00013698,2]
[335808009,1724499045394,-500.0,0.00013698,2]
[335808010,1724499045403,-1109.98,0.00013698,2]
[335808011,1724499045413,-1141.03,0.00013698,2]
[335808012,1724499045422,-500.0,0.00013698,2]
[335808013,1724499045431,-500.0,0.00013698,2]
[335808014,1724499045441,-500.0,0.00013698,2]
[335808015,1724499045451,-878.26,0.00013698,2]
[335808016,1724499045460,-571.02,0.00013698,2]
[335808017,1724499045470,-757.44,0.00013698,2]
[335808018,1724499045479,-866.78,0.00013698,2]
[335808019,1724499045488,-1088.24,0.00013698,2]
[335808020,1724499045499,-500.0,0.00013698,2]
[335808021,1724499045508,-500.0,0.00013698,2]
[335808022,1724499045517,-5334.2,0.00013698,2]
[335808023,1724499045526,-3116.97,0.00013698,2]
[335808024,1724499045535,-500.0,0.00013698,2]
[335808025,1724499045545,-616.7,0.00013698,2]
[335808026,1724499045554,-500.0,0.00013698,2]
[335808027,1724499045563,-500.0,0.00013698,2]
[335808028,1724499045572,-500.0,0.00013698,2]
[335808029,1724499045581,-1850.92,0.00013698,2]
[335808030,1724499045590,-3271.7,0.00013698,2]
[335808031,1724499045600,-285.92282374,0.00013698,2]
[335808032,1724499045610,-516.38483017,0.00013698,2]
[335808033,1724499045619,-671.5,0.00013698,2]
[335808034,1724499045628,-500.0,0.00013698,2]
[335808035,1724499045637,-852.56,0.00013698,2]
[335808036,1724499045646,-500.0,0.00013698,2]
[335808037,1724499045656,-500.0,0.00013698,2]
[335808038,1724499045665,-865.36,0.00013698,2]
[335808039,1724499045674,-879.93,0.00013698,2]
[335808040,1724499045683,-566.98,0.00013698,2]
[335808041,1724499045693,-500.0,0.00013698,2]
[335808042,1724499045702,-317.59539575,0.00013698,2]
[335808043,1724499045712,-2139.33,0.00013698,2]
[335808044,1724499045721,-500.0,0.00013698,2]
[335808045,1724499045730,-1853.78,0.00013698,2]
[335808046,1724499045739,-499.35084383,0.00013698,2]
[335808047,1724499045749,-11988.34,0.00013698,2]
[335808048,1724499045758,-609.06,0.00013698,2]
[335808049,1724499045768,-3726.92073047,0.00013698,2]
[335808060,1724499046486,-4164.71926953,0.00013698,2]
[335808061,1724499046495,-500.0,0.00013698,2]
[335808062,1724499046505,-784.55,0.00013698,2]
[335808063,1724499046514,-1049.11,0.00013698,2]
[335808064,1724499046524,-777.29,0.00013698,2]
[335808065,1724499046533,-626.76,0.00013698,2]
[335808066,1724499046543,-6261.06,0.00013698,2]
[335808067,1724499046552,-595.35638329,0.00013698,2]
[335808068,1724499046561,-3433.87,0.00013698,2]
[335808069,1724499046571,-500.0,0.00013698,2]
[335808070,1724499046580,-500.0,0.00013698,2]
[335808071,1724499046590,-3110.99,0.00013698,2]
[335808072,1724499046599,-513.99772868,0.00013698,2]
[335808073,1724499046608,-3034.97,0.00013698,2]
[335808074,1724499046618,-10091.91,0.00013698,2]
[335808075,1724499046628,-500.0,0.00013698,2]
[335808076,1724499046637,-667.13,0.00013698,2]
[335808077,1724499046647,-1126.09,0.00013698,2]
[335808078,1724499046655,-827.79,0.00013698,2]
[335808079,1724499046664,-500.0,0.00013698,2]
[335808080,1724499046674,-2700.79,0.00013698,2]
[335808081,1724499046683,-500.0,0.00013698,2]
[335808082,1724499046692,-500.0,0.00013698,2]
[335808083,1724499046702,-500.0,0.00013698,2]
[335808084,1724499046711,-631.14,0.00013698,2]
[335808085,1724499046720,-500.0,0.00013698,2]
[335808086,1724499046730,-611.61745047,0.00013698,2]
[335808087,1724499046740,-1463.77,0.00013698,2]
[335808088,1724499046750,-500.0,0.00013698,2]
[335808089,1724499046759,-500.0,0.00013698,2]
[335808090,1724499046769,-500.0,0.00013698,2]
[335808091,1724499046779,-588.89,0.00013698,2]
[335808092,1724499046789,-500.0,0.00013698,2]
[335808093,1724499046798,-500.0,0.00013698,2]
[335808094,1724499046807,-2199.63,0.00013698,2]
[335808095,1724499046817,-596.56,0.00013698,2]
[335808096,1724499046826,-500.0,0.00013698,2]
[335808097,1724499046835,-753.06,0.00013698,2]
[335808098,1724499046845,-500.0,0.00013698,2]
[335808099,1724499046854,-1994.68,0.00013698,2]
[335808100,1724499046864,-500.0,0.00013698,2]
[335808101,1724499046873,-629.3,0.00013698,2]
[335808102,1724499046883,-297.07315214,0.00013698,2]
[335808103,1724499046892,-569.66,0.00013698,2]
[335808104,1724499046901,-500.0,0.00013698,2]
[335808105,1724499046911,-527.49750531,0.00013698,2]
[335808106,1724499046920,-2333.95,0.00013698,2]
[335808108,1724499046929,-500.0,0.00013698,2]
[335808110,1724499046938,-5101.78,0.00013698,2]
[335808111,1724499046948,-725.17,0.00013698,2]
[335808113,1724499046962,-500.0,0.00013698,2]
[335808115,1724499046972,-838.03,0.00013698,2]
[335808117,1724499046982,-500.0,0.00013698,2]
[335808118,1724499046991,-954.49,0.00013698,2]
[335808119,1724499047000,-500.0,0.00013698,2]
[335808120,1724499047010,-500.0,0.00013698,2]
[335808121,1724499047019,-553.58,0.00013698,2]
[335808122,1724499047028,-1984.54,0.00013698,2]
[335808123,1724499047038,-500.83769805,0.00013698,2]
[335808124,1724499047048,-500.0,0.00013698,2]
[335808125,1724499047061,-500.0,0.00013698,2]
[335808126,1724499047071,-500.0,0.00013698,2]
[335808127,1724499047080,-500.0,0.00013698,2]
[335808128,1724499047089,-689.48,0.00013698,2]
[335808129,1724499047098,-500.0,0.00013698,2]
[335808130,1724499047107,-3038.17,0.00013698,2]